fUSD/lending_fUSD_20240319
["ID","MTS","AMOUNT","RATE_DAILY","PERIOD"]
[319589068,1710883895243,-500.0,0.00031232,2]
[319589069,1710883895253,-1094.92,0.00031232,2]
[319589070,1710883895263,-875.48,0.00031232,2]
[319589071,1710883895273,-2365.74,0.00031232,2]
[319589072,1710883895284,-500.0,0.00031232,2]
[319589073,1710883895294,-1362.21,0.00031232,2]
[319589074,1710883895304,-1403.96,0.00031232,2]
[319589075,1710883895314,-500.0,0.00031232,2]
[319589076,1710883895323,-500.0,0.00031232,2]
[319589077,1710883895333,-590.08,0.00031232,2]
[319589078,1710883895343,-620.16,0.00031232,2]
[319589079,1710883895353,-506.75,0.00031232,2]
[319589080,1710883895363,-569.27,0.00031232,2]
[319589081,1710883895373,-2130.05,0.00031232,2]
[319589082,1710883895382,-518.16,0.00031232,2]
[319589083,1710883895392,-1766.0,0.00031232,2]
[319589084,1710883895401,-2685.94,0.00031232,2]
[319589085,1710883895411,-232.12799554,0.00031232,2]
[319589086,1710883895421,-873.29,0.00031232,2]
[319589087,1710883895431,-2470.79,0.00031232,2]
[319589088,1710883895441,-500.0,0.00031232,2]
[319589089,1710883895451,-1534.58,0.00031232,2]
[319589090,1710883895461,-500.0,0.00031232,2]
[319589091,1710883895471,-500.0,0.00031232,2]
[319589092,1710883895480,-500.0,0.00031232,2]
[319589093,1710883895490,-1036.45,0.00031232,2]
[319589094,1710883895501,-512.06,0.00031232,2]
[319589095,1710883895511,-1470.65,0.00031232,2]
[319589096,1710883895521,-500.0,0.00031232,2]
[319589097,1710883895533,-1385.11,0.00031232,2]
[319589098,1710883895543,-500.0,0.00031232,2]
[319589099,1710883895553,-500.0,0.00031232,2]
[319589100,1710883895563,-539.91,0.00031232,2]
[319589101,1710883895574,-892.09,0.00031232,2]
[319589102,1710883895584,-1041.1,0.00031232,2]
[319589103,1710883895593,-500.0,0.00031232,2]
[319589104,1710883895603,-500.0,0.00031232,2]
[319589105,1710883895613,-4269.17,0.00031232,2]
[319589106,1710883895624,-500.0,0.00031232,2]
[319589107,1710883895634,-500.0,0.00031232,2]
[319589108,1710883895644,-670.7,0.00031232,2]
[319589109,1710883895654,-1864.38,0.00031232,2]
[319589110,1710883895664,-618.06,0.00031232,2]
[319589111,1710883895674,-597.33,0.00031232,2]
[319589112,1710883895684,-2495.07,0.00031232,2]
[319589113,1710883895694,-4586.31,0.00031232,2]
[319589114,1710883895704,-1054.82,0.00031232,2]
[319589115,1710883895713,-1014.6,0.00031232,2]
[319589116,1710883895723,-500.0,0.00031232,2]
[319589117,1710883895733,-500.0,0.00031232,2]
[319589118,1710883895743,-500.0,0.00031232,2]
[319589119,1710883895753,-500.0,0.00031232,2]
[319589120,1710883895763,-500.0,0.00031232,2]
[319589121,1710883895773,-500.0,0.00031232,2]
[319589122,1710883895784,-1337.58,0.00031232,2]
[319589123,1710883895793,-512.04,0.00031232,2]
[319589124,1710883895803,-677.62,0.00031232,2]
[319589125,1710883895813,-1526.76,0.00031232,2]
[319589126,1710883895823,-1259.98,0.00031232,2]
[319589127,1710883895833,-1566.09,0.00031232,2]
[319589128,1710883895843,-775.9,0.00031232,2]
[319589129,1710883895853,-500.0,0.00031232,2]
[319589130,1710883895863,-694.07,0.00031232,2]
[319589131,1710883895873,-2087.64,0.00031232,2]
[319589132,1710883895883,-500.0,0.00031232,2]
[319589133,1710883895893,-511.94,0.00031232,2]
[319589134,1710883895903,-500.0,0.00031232,2]
[319589135,1710883895914,-500.0,0.00031232,2]
[319589136,1710883895923,-1387.77,0.00031232,2]
[319589137,1710883895933,-500.0,0.00031232,2]
[319589138,1710883895943,-3092.84,0.00031232,2]
[319589139,1710883895953,-2016.56,0.00031232,2]
[319589140,1710883895964,-500.0,0.00031232,2]
[319589141,1710883895973,-4137.27,0.00031232,2]
[319589142,1710883895983,-415.14611026,0.00031232,2]
[319589143,1710883895993,-500.0,0.00031232,2]
[319589144,1710883896003,-500.0,0.00031232,2]
[319589145,1710883896013,-500.0,0.00031232,2]
[319589146,1710883896024,-1221.58,0.00031232,2]
[319589147,1710883896035,-887.17,0.00031232,2]
[319589148,1710883896045,-1339.53,0.00031232,2]
[319589149,1710883896055,-1141.5,0.00031232,2]
[319589150,1710883896066,-2224.93,0.00031232,2]
[319589151,1710883896076,-515.48,0.00031232,2]
[319589152,1710883896086,-522.54,0.00031232,2]
[319589153,1710883896097,-500.0,0.00031232,2]
[319589154,1710883896108,-755.91,0.00031232,2]
[319589155,1710883896122,-1238.68,0.00031232,2]
[319589156,1710883896133,-521.0,0.00031232,2]
[319589157,1710883896143,-1097.47,0.00031232,2]
[319589158,1710883896158,-500.0,0.00031232,2]
[319589159,1710883896169,-853.55,0.00031232,2]
[319589160,1710883896181,-1615.45,0.00031232,2]
[319589161,1710883896194,-735.47,0.00031232,2]
[319589162,1710883896204,-859.69,0.00031232,2]
[319589163,1710883896216,-500.0,0.00031232,2]
[319589164,1710883896226,-500.0,0.00031232,2]
[319589165,1710883896237,-1583.83,0.00031232,2]
[319589166,1710883896248,-500.0,0.00031232,2]
[319589167,1710883896259,-780.78,0.00031232,2]
[319589168,1710883896270,-500.0,0.00031232,2]
[319589169,1710883896281,-2133.33,0.00031232,2]
[319589170,1710883896292,-500.0,0.00031232,2]
[319589171,1710883896303,-500.0,0.00031232,2]
[319589172,1710883896313,-1323.94,0.00031232,2]
[319589173,1710883896323,-823.79,0.00031232,2]
[319589174,1710883896429,-500.0,0.00031232,2]
[319589175,1710883896449,-500.0,0.00031232,2]
[319589176,1710883896458,-500.0,0.00031232,2]
[319589177,1710883896469,-508.96,0.00031232,2]
[319589178,1710883896479,-1623.15,0.00031232,2]
[319589179,1710883896489,-500.0,0.00031232,2]
[319589180,1710883896499,-795.56,0.00031232,2]
[319589181,1710883896509,-500.0,0.00031232,2]
[319589182,1710883896520,-216.08067284,0.00031232,2]
[319589183,1710883896530,-1065.61,0.00031232,2]
[319589184,1710883896540,-1468.41,0.00031232,2]
[319589185,1710883896550,-704.5,0.00031232,2]
[319589186,1710883896560,-1194.31,0.00031232,2]
[319589187,1710883896570,-500.0,0.00031232,2]
[319589188,1710883896579,-1136.64,0.00031232,2]
[319589189,1710883896589,-736.67,0.00031232,2]
[319589190,1710883896599,-1054.6,0.00031232,2]
[319589191,1710883896610,-500.0,0.00031232,2]
[319589192,1710883896619,-1431.34,0.00031232,2]
[319589193,1710883896629,-500.0,0.00031232,2]
[319589194,1710883896640,-961.6,0.00031232,2]
[319589195,1710883896652,-500.0,0.00031232,2]
[319589196,1710883896665,-2402.37,0.00031232,2]
[319589197,1710883896674,-500.0,0.00031232,2]
[319589198,1710883896684,-1716.71,0.00031232,2]
[319589199,1710883896694,-500.0,0.00031232,2]
[319589200,1710883896703,-1601.69,0.00031232,2]
[319589201,1710883896713,-500.0,0.00031232,2]
[319589202,1710883896722,-4667.46,0.00031232,2]
[319589203,1710883896731,-1218.63,0.00031232,2]
[319589204,1710883896740,-500.0,0.00031232,2]
[319589205,1710883896750,-531.8149936,0.00031232,2]
[319589206,1710883896759,-500.0,0.00031232,2]
[319589207,1710883896769,-1581.23,0.00031232,2]
[319589208,1710883896779,-500.0,0.00031232,2]
[319589209,1710883896788,-843.91,0.00031232,2]
[319589210,1710883896798,-907.99,0.00031232,2]
[319589211,1710883896808,-500.0,0.00031232,2]
[319589212,1710883896818,-505.81234316,0.00031232,2]
[319589213,1710883896827,-1444.08,0.00031232,2]
[319589214,1710883896837,-500.0,0.00031232,2]
[319589215,1710883896846,-1639.05,0.00031232,2]
[319589216,1710883896856,-2169.8,0.00031232,2]
[319589217,1710883896866,-643.36,0.00031232,2]
[319589218,1710883896875,-500.0,0.00031232,2]
[319589219,1710883896885,-500.0,0.00031232,2]
[319589220,1710883896894,-1368.44,0.00031232,2]
[319589221,1710883896904,-1788.21,0.00031232,2]
[319589222,1710883896914,-500.0,0.00031232,2]
[319589223,1710883896923,-997.85,0.00031232,2]
[319589224,1710883896933,-500.0,0.00031232,2]
[319589225,1710883896942,-2227.94,0.00031232,2]
[319589226,1710883896952,-500.0,0.00031232,2]
[319589227,1710883896961,-523.21,0.00031232,2]
[319589228,1710883896971,-500.0,0.00031232,2]
[319589229,1710883896981,-500.0,0.00031232,2]
[319589230,1710883896990,-500.0,0.00031232,2]
[319589231,1710883896999,-500.0,0.00031232,2]
[319589232,1710883897008,-1062.54,0.00031232,2]
[319589233,1710883897018,-500.0,0.00031232,2]
[319589234,1710883897028,-2421.41,0.00031232,2]
[319589235,1710883897038,-500.0,0.00031232,2]
[319589236,1710883897047,-1427.8,0.00031232,2]
[319589237,1710883897056,-944.3,0.00031232,2]
[319589238,1710883897066,-721.9,0.00031232,2]
[319589239,1710883897075,-500.0,0.00031232,2]
[319589240,1710883897085,-807.72,0.00031232,2]
[319589241,1710883897095,-615.2523156,0.00031232,2]
[319589242,1710883897104,-2085.28,0.00031232,2]
[319589243,1710883897114,-1209.88,0.00031232,2]
[319589244,1710883897124,-629.63,0.00031232,2]
[319589245,1710883897136,-500.0,0.00031232,2]
[319589246,1710883897145,-2677.15,0.00031232,2]
[319589247,1710883897154,-1860.63,0.00031232,2]
[319589248,1710883897163,-608.3,0.00031232,2]
[319589249,1710883897174,-2012.38,0.00031232,2]
[319589250,1710883897183,-500.0,0.00031232,2]
[319589251,1710883897192,-689.51,0.00031232,2]
[319589252,1710883897202,-3603.52,0.00031232,2]
[319589253,1710883897215,-2566.01,0.00031232,2]
[319589254,1710883897225,-1531.43,0.00031232,2]
[319589255,1710883897234,-546.93,0.00031232,2]
[319589256,1710883897244,-2355.47,0.00031232,2]
[319589257,1710883897253,-667.89,0.00031232,2]
[319589258,1710883897263,-2131.2,0.00031232,2]
[319589259,1710883897272,-2323.6,0.00031232,2]
[319589260,1710883897283,-1029.83,0.00031232,2]
[319589261,1710883897293,-1002.08,0.00031232,2]
[319589262,1710883897302,-920.9,0.00031232,2]
[319589263,1710883897311,-500.0,0.00031232,2]
[319589264,1710883897321,-500.0,0.00031232,2]
[319589265,1710883897330,-500.0,0.00031232,2]
[319589266,1710883897340,-500.0,0.00031232,2]
[319589267,1710883897350,-500.0,0.00031232,2]
[319589268,1710883897360,-911.98,0.00031232,2]
[319589269,1710883897369,-1678.98,0.00031232,2]
[319589270,1710883897382,-500.0,0.00031232,2]
[319589271,1710883897391,-1863.56,0.00031232,2]
[319589272,1710883897400,-1128.71,0.00031232,2]
[319589273,1710883897410,-500.0,0.00031232,2]
[319589274,1710883897419,-2681.45,0.00031232,2]
[319589275,1710883897428,-1339.78,0.00031232,2]
[319589276,1710883897437,-500.0,0.00031232,2]
[319589277,1710883897447,-1106.22,0.00031232,2]
[319589278,1710883897457,-1300.16,0.00031232,2]
[319589279,1710883897469,-992.6,0.00031232,2]
[319589280,1710883897478,-1592.35,0.00031232,2]
[319589281,1710883897488,-819.23,0.00031232,2]
[319589282,1710883897497,-1472.83,0.00031232,2]
[319589283,1710883897507,-1693.58,0.00031232,2]
[319589284,1710883897516,-920.2,0.00031232,2]
[319589285,1710883897525,-500.0,0.00031232,2]
[319589286,1710883897535,-1479.36,0.00031232,2]
[319589287,1710883897545,-3015.74,0.00031232,2]
[319589288,1710883897554,-1476.3,0.00031232,2]
[319589289,1710883897564,-500.0,0.00031232,2]
[319589290,1710883897573,-1044.17,0.00031232,2]
[319589291,1710883897583,-730.68,0.00031232,2]
[319589292,1710883897592,-500.0,0.00031232,2]
[319589293,1710883897601,-578.08,0.00031232,2]
[319589294,1710883897611,-500.0,0.00031232,2]
[319589295,1710883897620,-595.68,0.00031232,2]
[319589296,1710883897630,-3228.34,0.00031232,2]
[319589297,1710883897641,-1788.05,0.00031232,2]
[319589298,1710883897650,-500.0,0.00031232,2]
[319589299,1710883897660,-4601.24,0.00031232,2]
[319589300,1710883897669,-3085.88,0.00031232,2]
[319589301,1710883897682,-500.0,0.00031232,2]
[319589302,1710883897692,-500.0,0.00031232,2]
[319589303,1710883897701,-612.20564469,0.00031232,2]
[319589304,1710883897711,-599.74,0.00031232,2]
[319589305,1710883897722,-1358.55,0.00031232,2]
[319589306,1710883897733,-670.46,0.00031232,2]
[319589307,1710883897743,-500.0,0.00031232,2]
[319589308,1710883897752,-642.15,0.00031232,2]
[319589309,1710883897762,-566.16,0.00031232,2]
[319589310,1710883897771,-721.15,0.00031232,2]
[319589311,1710883897782,-2938.58,0.00031232,2]
[319589312,1710883897792,-500.0,0.00031232,2]
[319589313,1710883897802,-4752.16,0.00031232,2]
[319589314,1710883897812,-500.0,0.00031232,2]
[319589315,1710883897822,-3009.86,0.00031232,2]
[319589316,1710883897834,-1617.93,0.00031232,2]
[319589317,1710883897843,-998.08,0.00031232,2]
[319589318,1710883897852,-1489.28,0.00031232,2]
[319589319,1710883897862,-619.52,0.00031232,2]
[319589320,1710883897871,-3181.49,0.00031232,2]
[319589321,1710883897881,-667.9,0.00031232,2]
[319589322,1710883897890,-425.40878807,0.00031232,2]
[319589323,1710883897899,-771.66,0.00031232,2]
[319589324,1710883897908,-500.0,0.00031232,2]
[319589325,1710883897917,-917.14,0.00031232,2]
[319589326,1710883897927,-1132.34,0.00031232,2]
[319589327,1710883897936,-536.82,0.00031232,2]
[319589328,1710883897946,-1991.15,0.00031232,2]
[319589329,1710883897955,-4279.74,0.00031232,2]
[319589330,1710883897964,-612.08,0.00031232,2]
[319589331,1710883897974,-1110.06,0.00031232,2]
[319589332,1710883897984,-500.0,0.00031232,2]
[319589333,1710883897993,-500.0,0.00031232,2]
[319589334,1710883898002,-1665.19,0.00031232,2]
[319589335,1710883898011,-1045.55,0.00031232,2]
[319589336,1710883898021,-500.0,0.00031232,2]
[319589337,1710883898030,-1094.52,0.00031232,2]
[319589338,1710883898040,-500.0,0.00031232,2]
[319589339,1710883898049,-532.26,0.00031232,2]
[319589340,1710883898058,-500.0,0.00031232,2]
[319589341,1710883898068,-1786.87,0.00031232,2]
[319589342,1710883898077,-502.72,0.00031232,2]
[319589343,1710883898087,-500.0,0.00031232,2]
[319589344,1710883898097,-806.79,0.00031232,2]
[319589345,1710883898106,-263.594786,0.00031232,7]
[319589346,1710883898121,-748.95,0.00031232,2]
[319589347,1710883898130,-500.0,0.00031232,2]
[319589348,1710883898139,-500.0,0.00031232,2]
[319589349,1710883898149,-593.79,0.00031232,2]
[319589350,1710883898159,-500.0,0.00031232,2]
[319589351,1710883898169,-8856.3,0.00031232,2]
[319589352,1710883898178,-500.0,0.00031232,2]
[319589353,1710883898188,-760.65,0.00031232,2]
[319589354,1710883898200,-554.19,0.00031232,2]
[319589355,1710883898210,-500.0,0.00031232,2]
[319589356,1710883898220,-1106.69,0.00031232,2]
[319589357,1710883898230,-500.0,0.00031232,2]
[319589358,1710883898240,-2327.89,0.00031232,2]
[319589359,1710883898249,-601.9,0.00031232,2]
[319589360,1710883898258,-500.0,0.00031232,2]
[319589361,1710883898267,-4503.28,0.00031232,2]
[319589362,1710883898276,-683.59,0.00031232,2]
[319589363,1710883898288,-1341.14,0.00031232,2]
[319589364,1710883898298,-3065.68,0.00031232,2]
[319589365,1710883898307,-500.0,0.00031232,2]
[319589366,1710883898317,-1146.77,0.00031232,2]
[319589367,1710883898325,-70475.11,0.00031232,2]
[319589368,1710883898335,-1391.85,0.00031232,2]
[319589369,1710883898343,-923.46,0.00031232,2]
[319589370,1710883898353,-996.04,0.00031232,2]
[319589371,1710883898362,-500.0,0.00031232,2]
[319589372,1710883898371,-500.0,0.00031232,2]
[319589373,1710883898381,-3598.57,0.00031232,2]
[319589374,1710883898392,-648.34068814,0.00031232,2]
[319589375,1710883898401,-415.80702311,0.00031232,2]
[319589376,1710883898411,-500.0,0.00031232,2]
[319589377,1710883898420,-671.83,0.00031232,2]
[319589378,1710883898429,-2497.58,0.00031232,2]
[319589379,1710883898438,-1473.31,0.00031232,2]
[319589380,1710883898449,-583.32428255,0.00031232,2]
[319589381,1710883898458,-1107.93,0.00031232,2]
[319589382,1710883898467,-503.54,0.00031232,2]
[319589383,1710883898476,-500.0,0.00031232,2]
[319589384,1710883898486,-500.04,0.00031232,2]
[319589385,1710883898495,-743.86,0.00031232,2]
[319589386,1710883898504,-1175.56,0.00031232,2]
[319589387,1710883898514,-2560.04,0.00031232,2]
[319589388,1710883898523,-14154.91,0.00031232,2]
[319589389,1710883898533,-5898.84,0.00031232,2]
[319589390,1710883898542,-500.0,0.00031232,2]
[319589391,1710883898551,-500.0,0.00031232,2]
[319589392,1710883898561,-500.0,0.00031232,2]
[319589393,1710883898570,-500.0,0.00031232,2]
[319589394,1710883898579,-500.0,0.00031232,2]
[319589395,1710883898588,-2689.21,0.00031232,2]
[319589396,1710883898598,-595.84,0.00031232,2]
[319589397,1710883898607,-500.0,0.00031232,2]
[319589398,1710883898616,-1267.16,0.00031232,2]
[319589399,1710883898625,-500.0,0.00031232,2]
[319589400,1710883898635,-2980.98,0.00031232,2]
[319589401,1710883898644,-3065.32,0.00031232,2]
[319589402,1710883898654,-500.0,0.00031232,2]
[319589403,1710883898664,-500.0,0.00031232,2]
[319589404,1710883898673,-500.0,0.00031232,2]
[319589405,1710883898682,-3801.0,0.00031232,2]
[319589406,1710883898692,-20389.23,0.00031232,2]
[319589407,1710883898701,-151.0,0.00031232,7]
[319589408,1710883898710,-4556.68,0.00031232,2]
[319589409,1710883898720,-2891.72,0.00031232,2]
[319589410,1710883898729,-725.51,0.00031232,2]
[319589411,1710883898739,-47375.69,0.00031232,2]
[319589412,1710883898749,-2490.42,0.00031232,2]
[319589413,1710883898758,-275.3886358,0.00031232,2]
[319589414,1710883898768,-500.0,0.00031232,2]
[319589415,1710883898779,-500.0,0.00031232,2]
[319589416,1710883898788,-500.0,0.00031232,2]
[319589417,1710883898797,-4147.4,0.00031232,2]
[319589418,1710883898806,-500.0,0.00031232,2]
[319589419,1710883898815,-500.0,0.00031232,2]
[319589420,1710883898825,-3211.93,0.00031232,2]
[319589421,1710883898835,-500.0,0.00031232,2]
[319589422,1710883898846,-2314.74,0.00031232,2]
[319589423,1710883898855,-1600.3,0.00031232,2]
[319589424,1710883898864,-1945.58,0.00031232,2]
[319589425,1710883898873,-500.0,0.00031232,2]
[319589426,1710883898883,-1483.68,0.00031232,2]
[319589427,1710883898892,-559.95,0.00031232,2]
[319589428,1710883898902,-663.81,0.00031232,2]
[319589429,1710883898911,-500.0,0.00031232,2]
[319589430,1710883898920,-500.0,0.00031232,2]
[319589431,1710883898929,-500.0,0.00031232,2]
[319589432,1710883898938,-10570.94,0.00031232,2]
[319589433,1710883898947,-10886.69,0.00031232,2]
[319589434,1710883898956,-3865.29,0.00031232,2]
[319589435,1710883898966,-2185.36,0.00031232,2]
[319589436,1710883898975,-2752.16,0.00031232,2]
[319589437,1710883898985,-500.0,0.00031232,2]
[319589438,1710883898994,-500.0,0.00031232,2]
[319589439,1710883899004,-500.0,0.00031232,2]
[319589440,1710883899014,-500.0,0.00031232,2]
[319589441,1710883899025,-4043.67,0.00031232,2]
[319589442,1710883899035,-1097.94,0.00031232,2]
[319589443,1710883899045,-606.69,0.00031232,2]
[319589444,1710883899055,-7939.41,0.00031232,2]
[319589445,1710883899063,-2749.39,0.00031232,2]
[319589446,1710883899072,-2790.61,0.00031232,2]
[319589447,1710883899081,-1059.8,0.00031232,2]
[319589448,1710883899090,-1280.77,0.00031232,2]
[319589449,1710883899099,-877.7,0.00031232,2]
[319589450,1710883899110,-3601.4,0.00031232,2]
[319589451,1710883899119,-1476.18,0.00031232,2]
[319589452,1710883899131,-4740.7,0.00031232,2]
[319589453,1710883899140,-500.0,0.00031232,2]
[319589454,1710883899149,-500.0,0.00031232,2]
[319589455,1710883899158,-891.26,0.00031232,2]
[319589456,1710883899169,-500.0,0.00031232,2]
[319589457,1710883899178,-500.0,0.00031232,2]
[319589458,1710883899188,-606.70030401,0.00031232,2]
[319589459,1710883899198,-500.0,0.00031232,2]
[319589460,1710883899208,-1559.83,0.00031232,2]
[319589461,1710883899218,-5079.64,0.00031232,2]
[319589462,1710883899227,-1577.2,0.00031232,2]
[319589463,1710883899236,-500.0,0.00031232,2]
[319589464,1710883899245,-4218.37,0.00031232,2]
[319589465,1710883899255,-9828.36,0.00031232,2]
[319589466,1710883899264,-500.0,0.00031232,2]
[319589467,1710883899273,-5493.68,0.00031232,2]
[319589468,1710883899283,-500.0,0.00031232,2]
[319589469,1710883899292,-500.0,0.00031232,2]
[319589470,1710883899302,-5160.57,0.00031232,2]
[319589471,1710883899311,-2531.37,0.00031232,2]
[319589472,1710883899320,-500.0,0.00031232,2]
[319589473,1710883899330,-4906.24,0.00031232,2]
[319589474,1710883899339,-4165.31,0.00031232,2]
[319589475,1710883899349,-5275.57,0.00031232,2]
[319589476,1710883899358,-500.0,0.00031232,2]
[319589477,1710883899367,-500.0,0.00031232,2]
[319589478,1710883899376,-1056.79,0.00031232,2]
[319589479,1710883899385,-500.0,0.00031232,2]
[319589480,1710883899395,-500.0,0.00031232,2]
[319589481,1710883899404,-4839.55,0.00031232,2]
[319589482,1710883899414,-500.0,0.00031232,2]
[319589483,1710883899423,-500.0,0.00031232,2]
[319589484,1710883899433,-7419.89,0.00031232,2]
[319589485,1710883899443,-4229.15,0.00031232,2]
[319589486,1710883899453,-1194.33,0.00031232,2]
[319589487,1710883899462,-3245.57,0.00031232,2]
[319589488,1710883899471,-500.0,0.00031232,2]
[319589489,1710883899481,-4377.03,0.00031232,2]
[319589490,1710883899490,-500.0,0.00031232,2]
[319589491,1710883899499,-500.0,0.00031232,2]
[319589492,1710883899509,-2111.4,0.00031232,2]
[319589493,1710883899518,-8031.56,0.00031232,2]
[319589494,1710883899527,-651.65,0.00031232,2]
[319589495,1710883899537,-500.0,0.00031232,2]
[319589496,1710883899547,-500.0,0.00031232,2]
[319589497,1710883899556,-1423.31,0.00031232,2]
[319589498,1710883899566,-5259.72,0.00031232,2]
[319589499,1710883899577,-1204.58,0.00031232,2]
[319589500,1710883899587,-2930.26,0.00031232,2]
[319589501,1710883899597,-500.0,0.00031232,2]
[319589502,1710883899606,-11130.16,0.00031232,2]
[319589503,1710883899616,-832.52,0.00031232,2]
[319589504,1710883899626,-9249.81,0.00031232,2]
[319589505,1710883899635,-500.0,0.00031232,2]
[319589506,1710883899645,-5684.8,0.00031232,2]
[319589507,1710883899654,-500.0,0.00031232,2]
[319589508,1710883899664,-3804.28,0.00031232,2]
[319589509,1710883899673,-8973.34,0.00031232,2]
[319589510,1710883899682,-500.0,0.00031232,2]
[319589511,1710883899692,-1414.18,0.00031232,2]
[319589512,1710883899701,-3168.58,0.00031232,2]
[319589513,1710883899711,-8338.3,0.00031232,2]
[319589514,1710883899721,-500.0,0.00031232,2]
[319589515,1710883899732,-4033.8,0.00031232,2]
[319589516,1710883899742,-3441.43,0.00031232,2]
[319589517,1710883899752,-500.0,0.00031232,2]
[319589518,1710883899763,-7232.08,0.00031232,2]
[319589519,1710883899776,-10350.75,0.00031232,2]
[319589520,1710883899790,-500.0,0.00031232,2]
[319589521,1710883899799,-3837.76,0.00031232,2]
[319589522,1710883899809,-4633.1,0.00031232,2]
[319589523,1710883899818,-500.0,0.00031232,2]
[319589524,1710883899828,-12146.42,0.00031232,2]
[319589525,1710883899838,-960.52,0.00031232,2]
[319589526,1710883899848,-4285.4,0.00031232,2]
[319589527,1710883899859,-10482.14,0.00031232,2]
[319589528,1710883899869,-1420.4,0.00031232,2]
[319589529,1710883899879,-500.0,0.00031232,2]
[319589530,1710883899889,-500.0,0.00031232,2]
[319589531,1710883899899,-500.0,0.00031232,2]
[319589532,1710883899909,-1293.02,0.00031232,2]
[319589533,1710883899919,-4258.27,0.00031232,2]
[319589534,1710883899929,-13155.35,0.00031232,2]
[319589535,1710883899938,-569.11,0.00031232,2]
[319589536,1710883899948,-2338.93,0.00031232,2]
[319589537,1710883899958,-753.19,0.00031232,2]
[319589538,1710883899968,-11295.13,0.00031232,2]
[319589539,1710883899977,-2434.72,0.00031232,2]
[319589540,1710883899987,-500.0,0.00031232,2]
[319589541,1710883899996,-5511.71,0.00031232,2]
[319589542,1710883900006,-686.32,0.00031232,2]
[319589543,1710883900016,-151.0,0.00031232,7]
[319589544,1710883900026,-3459.87,0.00031232,2]
[319589545,1710883900037,-2290.53,0.00031232,2]
[319589546,1710883900047,-3981.65,0.00031232,2]
[319589547,1710883900058,-22669.64,0.00031232,2]
[319589548,1710883900068,-1344.41,0.00031232,2]
[319589549,1710883900078,-16782.69,0.00031232,2]
[319589550,1710883900088,-500.0,0.00031232,2]
[319589551,1710883900098,-9329.88,0.00031232,2]
[319589552,1710883900109,-6850.67,0.00031232,2]
[319589553,1710883900119,-500.0,0.00031232,2]
[319589554,1710883900132,-500.0,0.00031232,2]
[319589555,1710883900142,-9425.82,0.00031232,2]
[319589556,1710883900152,-500.0,0.00031232,2]
[319589557,1710883900162,-500.0,0.00031232,2]
[319589558,1710883900173,-7313.78,0.00031232,2]
[319589559,1710883900183,-500.0,0.00031232,2]
[319589560,1710883900193,-3365.03,0.00031232,2]
[319589561,1710883900204,-6200.56,0.00031232,2]
[319589562,1710883900214,-500.0,0.00031232,2]
[319589563,1710883900224,-4563.38,0.00031232,2]
[319589564,1710883900234,-864.79,0.00031232,2]
[319589565,1710883900244,-500.0,0.00031232,2]
[319589566,1710883900254,-294.136098,0.00031232,7]
[319589567,1710883900265,-500.0,0.00031232,2]